fUSD/lending_fUSD_20241224
["ID","MTS","AMOUNT","RATE_DAILY","PERIOD"]
[346506338,1735011155143,-500.0,0.00018353,2]
[346506339,1735011155153,-500.0,0.00018353,2]
[346506340,1735011155162,-500.0,0.00018353,2]
[346506341,1735011155171,-500.0,0.00018353,2]
[346506342,1735011155180,-500.0,0.00018353,2]
[346506343,1735011155191,-500.0,0.00018353,2]
[346506344,1735011155200,-500.0,0.00018353,2]
[346506345,1735011155209,-642.3522708,0.00018353,2]
[346506346,1735011155218,-500.0,0.00018353,2]
[346506347,1735011155228,-500.0,0.00018353,2]
[346506348,1735011155237,-572.73038807,0.00018353,2]
[346506349,1735011155246,-505.14,0.00018353,2]
[346506350,1735011155255,-500.0,0.00018353,2]
[346506351,1735011155264,-500.0,0.00018353,2]
[346506352,1735011155273,-500.0,0.00018353,2]
[346506353,1735011155283,-457.69822086,0.00018353,2]
[346506354,1735011155291,-500.0,0.00018353,2]
[346506355,1735011155300,-500.0,0.00018353,2]
[346506356,1735011155309,-500.0,0.00018353,2]
[346506357,1735011155320,-500.0,0.00018353,2]
[346506358,1735011155329,-502.72608516,0.00018353,2]
[346506359,1735011155338,-2197.64,0.00018353,2]
[346506360,1735011155348,-500.0,0.00018353,2]
[346506361,1735011155357,-500.0,0.00018353,2]
[346506362,1735011155366,-924.29,0.00018353,2]
[346506363,1735011155375,-3800.89,0.00018353,2]
[346506364,1735011155384,-4111.27,0.00018353,2]
[346506365,1735011155394,-3362.87,0.00018353,2]
[346506366,1735011155407,-500.0,0.00018353,2]
[346506367,1735011155416,-227.41529056,0.00018353,2]
[346506368,1735011155425,-944.42,0.00018353,2]
[346506369,1735011155434,-578.45,0.00018353,2]
[346506370,1735011155444,-1032.77,0.00018353,2]
[346506371,1735011155453,-3197.19,0.00018353,2]
[346506372,1735011155464,-893.07,0.00018353,2]
[346506373,1735011155473,-831.96,0.00018353,2]
[346506374,1735011155482,-1264.9,0.00018353,2]
[346506375,1735011155491,-3791.3,0.00018353,2]
[346506376,1735011155501,-1468.04,0.00018353,2]
[346506377,1735011155510,-618.66,0.00018353,2]
[346506378,1735011155519,-500.0,0.00018353,2]
[346506379,1735011155528,-880.68,0.00018353,2]
[346506380,1735011155538,-4498.81,0.00018353,2]
[346506381,1735011155548,-980.14,0.00018353,2]
[346506382,1735011155557,-500.0,0.00018353,2]
[346506383,1735011155567,-845.95,0.00018353,2]
[346506384,1735011155576,-768.63,0.00018353,2]
[346506385,1735011155587,-1633.61,0.00018353,2]
[346506386,1735011155600,-10724.41,0.00018353,2]
[346506387,1735011155610,-500.0,0.00018353,2]
[346506388,1735011155620,-1907.04,0.00018353,2]
[346506389,1735011155630,-3409.97,0.00018353,2]
[346506390,1735011155641,-500.0,0.00018353,2]
[346506391,1735011155651,-3144.7,0.00018353,2]
[346506392,1735011155662,-7767.4,0.00018353,2]
[346506393,1735011155672,-3102.39,0.00018353,2]
[346506394,1735011155681,-2500.86,0.00018353,2]
[346506395,1735011155691,-16025.73,0.00018353,2]
[346506396,1735011155700,-6082.71,0.00018353,2]
[346506397,1735011155710,-2316.02,0.00018353,2]
[346506398,1735011155720,-1193.06,0.00018353,2]
[346506399,1735011155730,-599.65,0.00018353,2]
[346506400,1735011155740,-500.0,0.00018354,2]
[346506401,1735011155749,-500.0,0.00018354,2]
[346506402,1735011155759,-419.35829249,0.00018354,2]
[346506403,1735011155770,-500.0,0.00018354,2]
[346506404,1735011155779,-500.0,0.00018354,2]
[346506405,1735011155789,-500.0,0.00018354,2]
[346506406,1735011155799,-511.03,0.00018354,2]
[346506407,1735011155809,-500.0,0.00018354,2]
[346506408,1735011155818,-500.0,0.00018354,2]
[346506409,1735011155828,-500.0,0.00018354,2]
[346506410,1735011155838,-500.0,0.00018354,2]
[346506411,1735011155847,-426.47521078,0.00018354,2]
[346506412,1735011155857,-456.98538584,0.00018354,2]
[346506413,1735011155868,-503.70904253,0.00018354,2]
[346506414,1735011155878,-500.0,0.00018354,2]
[346506415,1735011155888,-500.0,0.00018354,2]
[346506416,1735011155897,-500.0,0.00018354,2]
[346506417,1735011155908,-500.0,0.00018354,2]
[346506418,1735011155918,-500.0,0.00018354,2]
[346506419,1735011155928,-511.22,0.00018354,2]
[346506420,1735011155938,-500.0,0.00018354,2]
[346506421,1735011155948,-500.0,0.00018354,2]
[346506422,1735011155959,-963.35,0.00018354,2]
[346506423,1735011155969,-600.51458605,0.00018354,2]
[346506424,1735011155979,-817.97,0.00018354,2]
[346506425,1735011155989,-1137.67,0.00018354,2]
[346506426,1735011155998,-916.16,0.00018354,2]
[346506427,1735011156008,-876.13,0.00018354,2]
[346506428,1735011156018,-850.87,0.00018354,2]
[346506429,1735011156028,-809.33,0.00018354,2]
[346506430,1735011156037,-576.68,0.00018354,2]
[346506431,1735011156047,-680.75,0.00018354,2]
[346506432,1735011156058,-500.0,0.00018354,2]
[346506433,1735011156068,-1535.16,0.00018354,2]
[346506434,1735011156078,-835.68,0.00018354,2]
[346506435,1735011156088,-500.0,0.00018354,2]
[346506436,1735011156098,-11706.4,0.00018354,2]
[346506437,1735011156107,-659.12,0.00018354,2]
[346506438,1735011156117,-500.0,0.00018354,2]
[346506439,1735011156126,-653.62,0.00018354,2]
[346506440,1735011156136,-534.76,0.00018354,2]
[346506441,1735011156146,-1707.85,0.00018354,2]
[346506442,1735011156156,-500.0,0.00018354,2]
[346506443,1735011156167,-1321.6,0.00018354,2]
[346506444,1735011156177,-980.51,0.00018354,2]
[346506445,1735011156186,-941.42,0.00018354,2]
[346506446,1735011156196,-1216.74,0.00018354,2]
[346506447,1735011156206,-2484.72,0.00018354,2]
[346506448,1735011156216,-824.25,0.00018354,2]
[346506449,1735011156226,-766.19,0.00018354,2]
[346506450,1735011156236,-500.0,0.00018354,2]
[346506451,1735011156247,-500.0,0.00018354,2]
[346506452,1735011156256,-1000.0,0.00018354,2]
[346506453,1735011156266,-1396.04,0.00018354,2]
[346506454,1735011156276,-635.05,0.00018354,2]
[346506455,1735011156287,-789.1,0.00018354,2]
[346506456,1735011156297,-500.0,0.00018354,2]
[346506457,1735011156307,-2682.71,0.00018354,2]
[346506458,1735011156316,-374.98832393,0.00018354,2]
[346506459,1735011156326,-940.58,0.00018354,2]
[346506460,1735011156337,-669.82,0.00018354,2]
[346506461,1735011156348,-1941.26,0.00018354,2]
[346506462,1735011156358,-575.68,0.00018354,2]
[346506463,1735011156368,-1285.44,0.00018354,2]
[346506464,1735011156379,-734.43,0.00018354,2]
[346506465,1735011156389,-1247.11,0.00018354,2]
[346506466,1735011156400,-500.0,0.00018354,2]
[346506467,1735011156409,-1338.65,0.00018354,2]
[346506468,1735011156419,-1230.35,0.00018354,2]
[346506469,1735011156429,-543.55,0.00018354,2]
[346506470,1735011156439,-649.45,0.00018354,2]
[346506471,1735011156449,-500.0,0.00018355,2]
[346506472,1735011156458,-500.0,0.00018355,2]
[346506473,1735011156468,-500.0,0.00018355,2]
[346506474,1735011156478,-484.97045789,0.00018355,2]
[346506475,1735011156488,-500.0,0.00018355,2]
[346506476,1735011156497,-500.0,0.00018355,2]
[346506477,1735011156507,-500.0,0.00018355,2]
[346506478,1735011156517,-500.0,0.00018355,2]
[346506479,1735011156527,-500.0,0.00018355,2]
[346506480,1735011156536,-500.0,0.00018355,2]
[346506481,1735011156546,-500.0,0.00018355,2]
[346506482,1735011156556,-509.34,0.00018355,2]
[346506483,1735011156566,-500.0,0.00018355,2]
[346506484,1735011156576,-307.12717233,0.00018355,2]
[346506485,1735011156585,-594.29,0.00018355,2]
[346506486,1735011156601,-500.0,0.00018355,2]
[346506487,1735011156612,-670.25,0.00018355,2]
[346506488,1735011156622,-553.58,0.00018355,2]
[346506489,1735011156632,-1203.72,0.00018355,2]
[346506490,1735011156642,-500.0,0.00018355,2]
[346506491,1735011156652,-500.0,0.00018355,2]
[346506492,1735011156663,-627.9,0.00018355,2]
[346506493,1735011156673,-561.02,0.00018355,2]
[346506494,1735011156684,-513.87057449,0.00018355,2]
[346506495,1735011156694,-1878.0,0.00018356,2]
[346506496,1735011156704,-1075.0,0.00018356,2]
[346506497,1735011156713,-2048.58,0.00018356,2]
[346506498,1735011156724,-1779.8,0.00018356,2]
[346506499,1735011156733,-1311.88,0.00018356,2]
[346506500,1735011156743,-3042.34,0.00018356,2]
[346506501,1735011156753,-4145.26,0.00018356,2]
[346506502,1735011156763,-2510.92,0.00018356,2]
[346506503,1735011156774,-2165.74,0.00018356,2]
[346506504,1735011156783,-4218.72,0.00018356,2]
[346506505,1735011156793,-2191.99,0.00018356,2]
[346506506,1735011156803,-2002.38,0.00018356,2]
[346506507,1735011156814,-683.71,0.00018356,2]
[346506508,1735011156823,-18977.0,0.00018356,2]
[346506509,1735011156833,-760.03,0.00018356,2]
[346506510,1735011156843,-1641.11,0.00018356,2]
[346506511,1735011156854,-11600.31,0.00018356,2]
[346506512,1735011156864,-404.55294469,0.0001837,2]
[346506513,1735011156874,-594.1762601,0.00018374,2]
[346506514,1735011156884,-506.4077902,0.00018374,2]
[346506515,1735011156894,-418.6393204,0.00018374,2]
[346506516,1735011156903,-322.80738769,0.00018374,2]
[346506517,1735011157275,-1090.91615131,0.00018374,2]
[346506518,1735011157286,-1356.8709403,0.00018374,2]
[346506519,1735011157296,-405.5335224,0.00018374,2]
[346506520,1735011157306,-389.225076,0.00018374,2]
[346506521,1735011157316,-4612685.50330558,0.00018387,2]
[346506522,1735011157328,-1755.57476754,0.00018387,2]
[346506523,1735011157378,-567.0,0.00018387,2]
[346506524,1735011157702,-500.0,0.00015338,2]
[346506525,1735011157711,-1163.391616,0.0001589,2]
[346506526,1735011434491,170.43,0.00016658,30]
[346506527,1735011521599,157.6,0.00010137,2]
[346506528,1735011543645,891.0,0.00026648,120]
[346506529,1735011549211,1000.0,0.00026648,120]
[346506530,1735011554966,1000.0,0.00026648,120]
[346506531,1735011560864,500.0,0.00026648,120]
[346506532,1735011565627,500.0,0.00026648,120]
[346506533,1735011672999,571.34,0.00011124,2]
[346506550,1735012232723,-250.0,0.00012975,2]
[346506551,1735012232732,-755.00961891,0.00012975,2]
[346506566,1735012238395,-8055.95038109,0.00012975,2]
[346506567,1735012238404,-1500.0,0.00012987,2]
[346506569,1735012238414,-266.21787757,0.0001304,2]
[346506570,1735012238423,-1000.0,0.00013086,2]
[346506571,1735012238432,-355.55,0.0001314,2]
[346506572,1735012238442,-250.0,0.00013145,2]
[346506573,1735012238451,-250.0,0.00013154,2]
[346506574,1735012238461,-266.21787756,0.00013319,2]
[346506575,1735012238470,-150.0,0.00013341,2]
[346506576,1735012238480,-98.85615442,0.00013354,2]
[346506578,1735012238870,-561.17384558,0.00013354,2]
[346506579,1735012238879,-150.0,0.0001337,2]
[346506580,1735012238888,-571.34,0.00013387,2]
[346506581,1735012238898,-300.0,0.00013597,2]
[346506582,1735012238907,-266.21787756,0.00013598,2]
[346506583,1735012238916,-357.0568,0.00013598,2]
[346506585,1735012238926,-707.73075703,0.00013598,2]
[346506587,1735012238937,-6733.000632,0.00013598,2]
[346506591,1735012239025,-126386.41881097,0.00013598,2]
[346506592,1735012239035,-163.58,0.00013695,2]
[346506593,1735012239043,-500.0,0.00013698,2]
[346506594,1735012239052,-500.0,0.00013698,2]
[346506595,1735012239062,-500.0,0.00013698,2]
[346506596,1735012239071,-500.0,0.00013698,2]
[346506597,1735012239080,-500.0,0.00013698,2]
[346506598,1735012239089,-500.0,0.00013698,2]
[346506599,1735012239098,-500.0,0.00013698,2]
[346506600,1735012239107,-502.18452935,0.00013698,2]
[346506601,1735012239115,-500.0,0.00013698,2]
[346506602,1735012239124,-500.0,0.00013698,2]
[346506603,1735012239133,-500.74771943,0.00013698,2]
[346506604,1735012239142,-501.7740316,0.00013698,2]
[346506605,1735012239151,-500.0,0.00013698,2]
[346506606,1735012239160,-500.0,0.00013698,2]
[346506607,1735012239169,-500.0,0.00013698,2]
[346506608,1735012239178,-500.0,0.00013698,2]
[346506609,1735012239187,-500.0,0.00013698,2]
[346506610,1735012239196,-500.0,0.00013698,2]
[346506611,1735012239205,-500.0,0.00013698,2]
[346506612,1735012239214,-500.0,0.00013698,2]
[346506613,1735012239223,-501.90920579,0.00013698,2]
[346506614,1735012239232,-500.0,0.00013698,2]
[346506615,1735012239241,-500.0,0.00013698,2]
[346506616,1735012239250,-500.0,0.00013698,2]
[346506617,1735012239259,-500.0,0.00013698,2]
[346506618,1735012239268,-501.68389378,0.00013698,2]
[346506619,1735012239278,-500.0,0.00013698,2]
[346506620,1735012239287,-500.0,0.00013698,2]
[346506621,1735012239296,-501.85088288,0.00013698,2]
[346506622,1735012239305,-500.0,0.00013698,2]
[346506623,1735012239314,-500.0,0.00013698,2]
[346506624,1735012239323,-500.0,0.00013698,2]
[346506625,1735012239332,-500.0,0.00013698,2]
[346506626,1735012239341,-500.0,0.00013698,2]
[346506627,1735012239350,-500.0,0.00013698,2]
[346506628,1735012239359,-500.0,0.00013698,2]
[346506629,1735012239368,-500.0,0.00013698,2]
[346506630,1735012239377,-510.3,0.00013698,2]
[346506631,1735012239386,-500.0,0.00013698,2]
[346506632,1735012239395,-500.0,0.00013698,2]
[346506633,1735012239404,-500.0,0.00013698,2]
[346506634,1735012239413,-500.0,0.00013698,2]
[346506635,1735012239422,-500.0,0.00013698,2]
[346506636,1735012239431,-500.0,0.00013698,2]
[346506637,1735012239441,-500.0,0.00013698,2]
[346506638,1735012239450,-500.0,0.00013698,2]
[346506639,1735012239460,-500.0,0.00013698,2]
[346506640,1735012239469,-500.0,0.00013698,2]
[346506641,1735012239478,-500.0,0.00013698,2]
[346506642,1735012239488,-503.40657846,0.00013698,2]
[346506643,1735012239497,-500.0,0.00013698,2]
[346506644,1735012239505,-500.0,0.00013698,2]
[346506645,1735012239514,-501.73123365,0.00013698,2]
[346506646,1735012239525,-500.0,0.00013698,2]
[346506647,1735012239534,-500.0,0.00013698,2]
[346506648,1735012239543,-501.91961961,0.00013698,2]
[346506649,1735012239553,-500.0,0.00013698,2]
[346506650,1735012239562,-500.0,0.00013698,2]
[346506651,1735012239571,-500.0,0.00013698,2]
[346506652,1735012239579,-500.0,0.00013698,2]
[346506653,1735012239589,-500.0,0.00013698,2]
[346506654,1735012239598,-500.0,0.00013698,2]
[346506655,1735012239607,-500.0,0.00013698,2]
[346506656,1735012239616,-500.0,0.00013698,2]
[346506657,1735012239625,-500.0,0.00013698,2]
[346506658,1735012239634,-500.0,0.00013698,2]
[346506659,1735012239644,-500.0,0.00013698,2]
[346506660,1735012239653,-500.0,0.00013698,2]
[346506661,1735012239662,-500.0,0.00013698,2]
[346506662,1735012239672,-500.0,0.00013698,2]
[346506663,1735012239681,-510.48935242,0.00013698,2]
[346506664,1735012239691,-500.0,0.00013698,2]
[346506665,1735012239699,-500.0,0.00013698,2]
[346506666,1735012239709,-574.65590224,0.00013698,2]
[346506667,1735012239718,-436.36662447,0.00013698,2]
[346506668,1735012239727,-500.0,0.00013698,2]
[346506669,1735012239736,-500.0,0.00013698,2]
[346506670,1735012239745,-500.0,0.00013698,2]
[346506671,1735012239755,-500.0,0.00013698,2]
[346506672,1735012239764,-500.0,0.00013698,2]
[346506673,1735012239773,-500.0,0.00013698,2]
[346506674,1735012239783,-538.88820695,0.00013698,2]
[346506675,1735012239792,-509.18104082,0.00013698,2]
[346506676,1735012239801,-500.0,0.00013698,2]
[346506677,1735012239810,-500.0,0.00013698,2]
[346506678,1735012239819,-500.0,0.00013698,2]
[346506679,1735012239828,-500.0,0.00013698,2]
[346506680,1735012239838,-529.40825961,0.00013698,2]
[346506681,1735012239847,-500.0,0.00013698,2]
[346506682,1735012239856,-500.0,0.00013698,2]
[346506683,1735012239865,-500.0,0.00013698,2]
[346506684,1735012239875,-500.0,0.00013698,2]
[346506685,1735012239884,-500.0,0.00013698,2]
[346506686,1735012239894,-500.0,0.00013698,2]
[346506687,1735012239903,-500.0,0.00013698,2]
[346506688,1735012239912,-500.0,0.00013698,2]
[346506689,1735012239922,-500.0,0.00013698,2]
[346506690,1735012239931,-500.0,0.00013698,2]
[346506691,1735012239940,-500.0,0.00013698,2]
[346506692,1735012239950,-500.0,0.00013698,2]
[346506693,1735012239961,-500.0,0.00013698,2]
[346506694,1735012239970,-500.0,0.00013698,2]
[346506695,1735012239980,-506.60621225,0.00013698,2]
[346506696,1735012239992,-500.0,0.00013698,2]
[346506697,1735012240002,-500.0,0.00013698,2]
[346506698,1735012240012,-500.0,0.00013698,2]
[346506699,1735012240021,-500.0,0.00013698,2]
[346506700,1735012240031,-500.0,0.00013698,2]
[346506701,1735012240040,-500.53869063,0.00013698,2]
[346506702,1735012240050,-500.49908815,0.00013698,2]
[346506703,1735012240059,-502.98931329,0.00013698,2]
[346506704,1735012240069,-500.0,0.00013698,2]
[346506705,1735012240078,-500.0,0.00013698,2]
[346506706,1735012240087,-501.55068953,0.00013698,2]
[346506707,1735012240096,-500.0,0.00013698,2]
[346506708,1735012240105,-500.0,0.00013698,2]
[346506709,1735012240114,-500.0,0.00013698,2]
[346506710,1735012240123,-500.0,0.00013698,2]
[346506711,1735012240132,-500.0,0.00013698,2]
[346506712,1735012240141,-500.0,0.00013698,2]
[346506713,1735012240150,-500.0,0.00013698,2]
[346506714,1735012240160,-500.0,0.00013698,2]
[346506715,1735012240169,-500.0,0.00013698,2]
[346506716,1735012240178,-500.0,0.00013698,2]
[346506717,1735012240187,-501.09148526,0.00013698,2]
[346506718,1735012240196,-500.0,0.00013698,2]
[346506719,1735012240205,-500.0,0.00013698,2]
[346506720,1735012240216,-500.0,0.00013698,2]
[346506721,1735012240225,-500.0,0.00013698,2]
[346506722,1735012240235,-500.0,0.00013698,2]
[346506723,1735012240244,-500.0,0.00013698,2]
[346506724,1735012240253,-500.0,0.00013698,2]
[346506725,1735012240263,-500.0,0.00013698,2]
[346506726,1735012240271,-500.0,0.00013698,2]
[346506727,1735012240280,-502.36847157,0.00013698,2]
[346506728,1735012240290,-500.0,0.00013698,2]
[346506729,1735012240300,-500.0,0.00013698,2]
[346506730,1735012240311,-500.0,0.00013698,2]
[346506731,1735012240320,-500.0,0.00013698,2]
[346506732,1735012240331,-500.0,0.00013698,2]
[346506733,1735012240340,-500.0,0.00013698,2]
[346506734,1735012240350,-500.0,0.00013698,2]
[346506735,1735012240359,-501.436305,0.00013698,2]
[346506736,1735012240368,-500.0,0.00013698,2]
[346506737,1735012240377,-500.0,0.00013698,2]
[346506738,1735012240386,-500.0,0.00013698,2]
[346506739,1735012240395,-500.0,0.00013698,2]
[346506740,1735012240404,-500.0,0.00013698,2]
[346506741,1735012240413,-500.0,0.00013698,2]
[346506742,1735012240422,-500.0,0.00013698,2]
[346506743,1735012240431,-500.0,0.00013698,2]
[346506744,1735012240440,-500.0,0.00013698,2]
[346506745,1735012240449,-500.0,0.00013698,2]
[346506746,1735012240459,-500.0,0.00013698,2]
[346506747,1735012240468,-500.0,0.00013698,2]
[346506748,1735012240477,-549.49,0.00013698,2]
[346506749,1735012240486,-500.0,0.00013698,2]
[346506750,1735012240495,-609.54,0.00013698,2]
[346506751,1735012240504,-500.0,0.00013698,2]
[346506752,1735012240513,-500.0,0.00013698,2]
[346506753,1735012240522,-500.0,0.00013698,2]
[346506754,1735012240531,-500.0,0.00013698,2]
[346506755,1735012240540,-500.0,0.00013698,2]
[346506756,1735012240550,-535.26,0.00013698,2]
[346506757,1735012240559,-500.0,0.00013698,2]
[346506758,1735012240568,-500.0,0.00013698,2]
[346506759,1735012240578,-500.0,0.00013698,2]
[346506760,1735012240587,-500.0,0.00013698,2]
[346506761,1735012240596,-766.37,0.00013698,2]
[346506762,1735012240605,-502.10922379,0.00013698,2]
[346506763,1735012240615,-500.0,0.00013698,2]
[346506764,1735012240624,-1302.2,0.00013698,2]
[346506765,1735012240634,-525.95,0.00013698,2]
[346506766,1735012240643,-500.0,0.00013698,2]
[346506767,1735012240652,-761.74,0.00013698,2]
[346506768,1735012240661,-500.0,0.00013698,2]
[346506769,1735012240670,-500.0,0.00013698,2]
[346506770,1735012240679,-389.4731305,0.00013698,2]
[346506771,1735012241394,-110.5268695,0.00013698,2]
[346506772,1735012241403,-376.9331305,0.00013698,2]
[346506773,1735012241414,-123.0668695,0.00013698,2]
[346506774,1735012241423,-188.26118227,0.00013698,2]
[346506775,1735012241434,-419.25881773,0.00013698,2]
[346506776,1735012241443,-358.4371823,0.00013698,2]
[346506777,1735012241454,-141.5628177,0.00013698,2]
[346506778,1735012241466,-293.72136676,0.00013698,2]
[346506786,1735012243441,-206.27863324,0.00013698,2]
[346506787,1735012243451,-306.72136676,0.00013698,2]
[346506790,1735012246325,-193.27863324,0.00013698,2]
[346506791,1735012246335,-500.0,0.00013698,2]
[346506792,1735012246344,-541.54,0.00013698,2]
[346506793,1735012246353,-500.0,0.00013698,2]
[346506795,1735012246362,-500.0,0.00013698,2]
[346506796,1735012246371,-18.93597788,0.00013698,2]
[346506799,1735012246383,-481.06402212,0.00013698,2]
[346506801,1735012246392,-199.93597788,0.00013698,2]
[346506805,1735012566680,549.7,0.00011474,2]
[346506806,1735012759440,200.63137113,0.00011417,2]
[346506807,1735012856513,177.2,0.00010137,2]
[346506808,1735012988055,9800.0,0.00019,30]
[346506823,1735013372115,-523.15694395,0.00013,2]
[346506830,1735013410861,3408.59872606,0.00018,59]
[346506839,1735013432342,-992.18563616,0.00013,2]
[346506840,1735013432503,-366.03,0.00013,2]
[346506841,1735013432514,-788.5,0.00013,2]
[346506842,1735013432608,-417.98026338,0.00013,2]
[346506843,1735013432618,-1617.88142723,0.00013,2]
[346506844,1735013432627,-268.83931579,0.00013,2]
[346506845,1735013432636,-450.0,0.00013,2]
[346506846,1735013432646,-16383.16,0.00013081,2]
[346506847,1735013432655,-528.02,0.00013117,2]
[346506848,1735013432664,-250.0,0.00013154,2]
[346506849,1735013432672,-291.29,0.00013341,2]
[346506850,1735013432682,-713.54,0.00013388,2]
[346506851,1735013432691,-1000.0,0.00013435,2]
[346506852,1735013432700,-352.67991656,0.00013569,2]
[346506853,1735013432709,-155.825675,0.00013698,2]
[346506854,1735013432718,-154.430376,0.00013698,2]
[346506855,1735013432727,-557.005148,0.00013698,2]
[346506856,1735013432737,-627.956798,0.00013698,2]
[346506857,1735013432746,-500.0,0.00013698,2]
[346506858,1735013432755,-500.0,0.00013698,2]
[346506859,1735013432764,-500.0,0.00013698,2]
[346506860,1735013432773,-500.0,0.00013698,2]
[346506861,1735013432782,-500.0,0.00013698,2]
[346506862,1735013432791,-500.0,0.00013698,2]
[346506863,1735013432801,-500.0,0.00013698,2]
[346506864,1735013432810,-500.0,0.00013698,2]
[346506866,1735013432819,-500.0,0.00013698,2]
[346506867,1735013432828,-500.0,0.00013698,2]
[346506869,1735013432837,-515.71088259,0.00013698,2]
[346506871,1735013432846,-500.0,0.00013698,2]
[346506873,1735013432855,-500.0,0.00013698,2]
[346506875,1735013432865,-500.0,0.00013698,2]
[346506877,1735013432874,-500.0,0.00013698,2]
[346506879,1735013432883,-500.0,0.00013698,2]
[346506881,1735013432892,-311.12,0.00013698,2]
[346506883,1735013432902,-500.0,0.00013698,2]
[346506885,1735013432911,-500.0,0.00013698,2]
[346506886,1735013432921,-513.89286206,0.00013698,2]
[346506887,1735013432930,-500.0,0.00013698,2]
[346506888,1735013432939,-500.0,0.00013698,2]
[346506889,1735013432949,-500.0,0.00013698,2]
[346506890,1735013432958,-500.0,0.00013698,2]
[346506891,1735013432968,-500.0,0.00013698,2]
[346506892,1735013432978,-500.0,0.00013698,2]
[346506893,1735013432987,-500.0,0.00013698,2]
[346506894,1735013432997,-235.46948424,0.00013698,2]
[346506895,1735013433007,-500.0,0.00013698,2]
[346506896,1735013433016,-216.77568446,0.00013698,2]
[346506897,1735013433026,-500.0,0.00013698,2]
[346506898,1735013433036,-500.0,0.00013698,2]
[346506899,1735013433045,-1379.37,0.00013698,2]
[346506900,1735013433054,-500.0,0.00013698,2]
[346506901,1735013433063,-500.0,0.00013698,2]
[346506902,1735013433077,-500.0,0.00013698,2]
[346506903,1735013433090,-502.32666787,0.00013698,2]
[346506904,1735013433104,-500.0,0.00013698,2]
[346506905,1735013433118,-508.54038472,0.00013698,2]
[346506906,1735013433131,-503.56532336,0.00013698,2]
[346506907,1735013433143,-500.0,0.00013698,2]
[346506908,1735013433154,-500.0,0.00013698,2]
[346506909,1735013433164,-612.32985252,0.00013698,2]
[346506910,1735013433175,-500.0,0.00013698,2]
[346506911,1735013433187,-500.0,0.00013698,2]
[346506912,1735013433199,-500.0,0.00013698,2]
[346506913,1735013433210,-500.0,0.00013698,2]
[346506914,1735013433222,-500.0,0.00013698,2]
[346506915,1735013433233,-584.15,0.00013698,2]
[346506916,1735013433245,-500.0,0.00013698,2]
[346506917,1735013433256,-500.0,0.00013698,2]
[346506918,1735013433268,-717.15,0.00013698,2]
[346506919,1735013433281,-500.0,0.00013698,2]
[346506920,1735013433293,-500.0,0.00013698,2]
[346506921,1735013433306,-505.24140559,0.00013698,2]
[346506922,1735013433317,-500.0,0.00013698,2]
[346506923,1735013433328,-500.0,0.00013698,2]
[346506924,1735013433339,-500.0,0.00013698,2]
[346506925,1735013433350,-500.0,0.00013698,2]
[346506926,1735013433360,-500.0,0.00013698,2]
[346506927,1735013433375,-500.0,0.00013698,2]
[346506928,1735013433385,-580.32,0.00013698,2]